[Event "*** Titled Tuesday Blitz"]
[Site "Chess.com"]
[Date "2019.02.05"]
[Round "5"]
[White "sergoy"]
[Black "Kouzari"]
[Result "1/2-1/2"]
[WhiteElo "2801"]
[BlackElo "2626"]
[TimeControl "180+2"]
[EndTime "14:11:17 PST"]
[Termination "Game drawn by stalemate"]

1. d4 {[%clk 0:02:57.7]} 1... Nf6 {[%clk 0:02:59.8]} 2. c4 {[%clk 0:02:58.5]}
2... e6 {[%clk 0:03:01.1]} 3. Nf3 {[%clk 0:02:59.1]} 3... c5 {[%clk 0:03:03]} 4.
d5 {[%clk 0:02:59.9]} 4... exd5 {[%clk 0:03:04.9]} 5. cxd5 {[%clk 0:03:01.8]}
5... d6 {[%clk 0:03:06.8]} 6. Nc3 {[%clk 0:03:03.3]} 6... g6 {[%clk 0:03:08.7]}
7. e4 {[%clk 0:03:04.6]} 7... Bg7 {[%clk 0:03:10]} 8. h3 {[%clk 0:03:05.7]} 8...
O-O {[%clk 0:03:11]} 9. Bd3 {[%clk 0:03:07.3]} 9... b5 {[%clk 0:03:12.5]} 10.
Nxb5 {[%clk 0:02:55.4]} 10... Re8 {[%clk 0:03:11.6]} 11. O-O {[%clk 0:02:56.1]}
11... Nxe4 {[%clk 0:03:07.9]} 12. Re1 {[%clk 0:02:57.3]} 12... a6 {[%clk
0:03:08.9]} 13. Na3 {[%clk 0:02:56.8]} 13... Nf6 {[%clk 0:03:08.6]} 14. Rxe8+
{[%clk 0:02:57.3]} 14... Nxe8 {[%clk 0:03:09.2]} 15. Nc4 {[%clk 0:02:57.2]}
15... Nd7 {[%clk 0:03:10.6]} 16. Bg5 {[%clk 0:02:57.8]} 16... Qc7 {[%clk
0:02:50.2]} 17. Rb1 {[%clk 0:02:11.8]} 17... Bb7 {[%clk 0:02:50.2]} 18. Ne3
{[%clk 0:02:13.4]} 18... Nef6 {[%clk 0:02:49.1]} 19. Bf4 {[%clk 0:02:10.5]}
19... Re8 {[%clk 0:02:31.1]} 20. Bh2 {[%clk 0:01:23.9]} 20... Nxd5 {[%clk
0:02:25]} 21. Nxd5 {[%clk 0:00:56.2]} 21... Bxd5 {[%clk 0:02:26.9]} 22. Bxa6
{[%clk 0:00:56.8]} 22... Bxa2 {[%clk 0:02:05.1]} 23. Ra1 {[%clk 0:00:54.9]}
23... Be6 {[%clk 0:02:00.9]} 24. Ng5 {[%clk 0:00:53.9]} 24... Be5 {[%clk
0:01:54.9]} 25. Bxe5 {[%clk 0:00:29.8]} 25... Nxe5 {[%clk 0:01:54.6]} 26. Ne4
{[%clk 0:00:28.1]} 26... Rd8 {[%clk 0:01:42.5]} 27. f4 {[%clk 0:00:28.2]} 27...
Nc6 {[%clk 0:01:37.7]} 28. Ng5 {[%clk 0:00:28.8]} 28... Nd4 {[%clk 0:01:36]} 29.
Bd3 {[%clk 0:00:29.6]} 29... d5 {[%clk 0:01:30.4]} 30. Qd2 {[%clk 0:00:26.5]}
30... Bf5 {[%clk 0:01:01.1]} 31. Bxf5 {[%clk 0:00:19]} 31... Nxf5 {[%clk
0:01:00.6]} 32. Nf3 {[%clk 0:00:19.7]} 32... d4 {[%clk 0:00:49.6]} 33. Ne5
{[%clk 0:00:20.8]} 33... Ne3 {[%clk 0:00:48.3]} 34. Ra6 {[%clk 0:00:20.5]} 34...
Rb8 {[%clk 0:00:25.1]} 35. Qf2 {[%clk 0:00:18.6]} 35... Qb7 {[%clk 0:00:23.9]}
36. Ra2 {[%clk 0:00:17.6]} 36... Qd5 {[%clk 0:00:23.6]} 37. Ra7 {[%clk
0:00:17.8]} 37... Rb7 {[%clk 0:00:17.9]} 38. Ra6 {[%clk 0:00:12.9]} 38... c4
{[%clk 0:00:16.3]} 39. Ng4 {[%clk 0:00:12.6]} 39... Nxg4 {[%clk 0:00:14]} 40.
hxg4 {[%clk 0:00:14.5]} 40... Rb8 {[%clk 0:00:13.4]} 41. f5 {[%clk 0:00:15.2]}
41... d3 {[%clk 0:00:13.9]} 42. Qf4 {[%clk 0:00:16.5]} 42... Re8 {[%clk
0:00:12.4]} 43. f6 {[%clk 0:00:17.3]} 43... Qc5+ {[%clk 0:00:09.3]} 44. Kh2
{[%clk 0:00:17.8]} 44... g5 {[%clk 0:00:09.2]} 45. Qg3 {[%clk 0:00:13.5]} 45...
Qd4 {[%clk 0:00:07.7]} 46. Rd6 {[%clk 0:00:14.4]} 46... Qf4 {[%clk 0:00:07.7]}
47. Qxf4 {[%clk 0:00:13.1]} 47... gxf4 {[%clk 0:00:09.6]} 48. Rd4 {[%clk
0:00:14]} 48... Rc8 {[%clk 0:00:08.9]} 49. Kg1 {[%clk 0:00:14.2]} 49... h6
{[%clk 0:00:10.3]} 50. Kf2 {[%clk 0:00:15.5]} 50... Kh7 {[%clk 0:00:11.8]} 51.
Kf3 {[%clk 0:00:16.9]} 51... Kg6 {[%clk 0:00:13.3]} 52. Kxf4 {[%clk 0:00:18.5]}
52... Kxf6 {[%clk 0:00:12.5]} 53. Kf3 {[%clk 0:00:19.7]} 53... Kg6 {[%clk
0:00:13.9]} 54. g3 {[%clk 0:00:20.7]} 54... Kg5 {[%clk 0:00:14.9]} 55. Rd5+
{[%clk 0:00:22]} 55... Kg6 {[%clk 0:00:16.3]} 56. Ke3 {[%clk 0:00:22.6]} 56...
Re8+ {[%clk 0:00:16.5]} 57. Kd4 {[%clk 0:00:23.2]} 57... Re2 {[%clk 0:00:14.1]}
58. Kxc4 {[%clk 0:00:24.3]} 58... Rxb2 {[%clk 0:00:15.2]} 59. Kxd3 {[%clk
0:00:24.5]} 59... Rb3+ {[%clk 0:00:15.9]} 60. Ke4 {[%clk 0:00:26]} 60... Rxg3
{[%clk 0:00:17.3]} 61. Kf4 {[%clk 0:00:27.5]} 61... Rc3 {[%clk 0:00:18.5]} 62.
Rd6+ {[%clk 0:00:29]} 62... f6 {[%clk 0:00:19.6]} 63. Rb6 {[%clk 0:00:30.2]}
63... Rc4+ {[%clk 0:00:20.9]} 64. Kg3 {[%clk 0:00:31.6]} 64... Rc5 {[%clk
0:00:22.3]} 65. Rb8 {[%clk 0:00:31.4]} 65... Rc3+ {[%clk 0:00:22.3]} 66. Kf4
{[%clk 0:00:32.3]} 66... Rc4+ {[%clk 0:00:22.7]} 67. Kg3 {[%clk 0:00:33.6]}
67... Rc7 {[%clk 0:00:23.3]} 68. Rg8+ {[%clk 0:00:33.5]} 68... Rg7 {[%clk
0:00:24.3]} 69. Rb8 {[%clk 0:00:34.7]} 69... Kh7 {[%clk 0:00:25.6]} 70. Kf4
{[%clk 0:00:35.1]} 70... Rc7 {[%clk 0:00:26.2]} 71. Rb6 {[%clk 0:00:34.9]} 71...
Kg7 {[%clk 0:00:27.1]} 72. Kf5 {[%clk 0:00:34.4]} 72... Rc5+ {[%clk 0:00:22.6]}
73. Kf4 {[%clk 0:00:35.5]} 73... Kg6 {[%clk 0:00:22.4]} 74. Rb8 {[%clk
0:00:36.5]} 74... h5 {[%clk 0:00:21.5]} 75. gxh5+ {[%clk 0:00:35.4]} 75... Rxh5
{[%clk 0:00:23]} 76. Kf3 {[%clk 0:00:34.7]} 76... Rf5+ {[%clk 0:00:23.1]} 77.
Kg2 {[%clk 0:00:31.3]} 77... Rf4 {[%clk 0:00:23.2]} 78. Kg3 {[%clk 0:00:30.1]}
78... Rf1 {[%clk 0:00:20.6]} 79. Rb5 {[%clk 0:00:30.3]} 79... f5 {[%clk
0:00:16.7]} 80. Kg2 {[%clk 0:00:31.4]} 80... Rf4 {[%clk 0:00:17.6]} 81. Kg3
{[%clk 0:00:32.6]} 81... Rc4 {[%clk 0:00:18.1]} 82. Kf3 {[%clk 0:00:33.7]} 82...
Kg5 {[%clk 0:00:19]} 83. Rb3 {[%clk 0:00:25.9]} 83... Rc2 {[%clk 0:00:19.7]} 84.
Kg3 {[%clk 0:00:25.9]} 84... Rc4 {[%clk 0:00:20.6]} 85. Kf3 {[%clk 0:00:27]}
85... Rh4 {[%clk 0:00:21.2]} 86. Kg3 {[%clk 0:00:25.3]} 86... Rg4+ {[%clk
0:00:22.3]} 87. Kf3 {[%clk 0:00:26.2]} 87... Kh4 {[%clk 0:00:23.2]} 88. Rb5
{[%clk 0:00:24.5]} 88... Kg5 {[%clk 0:00:23.8]} 89. Rb8 {[%clk 0:00:25.5]} 89...
Rf4+ {[%clk 0:00:24.6]} 90. Kg3 {[%clk 0:00:26.6]} 90... Re4 {[%clk 0:00:24.8]}
91. Rg8+ {[%clk 0:00:26.5]} 91... Kf6 {[%clk 0:00:26.1]} 92. Kf3 {[%clk
0:00:27.8]} 92... Re7 {[%clk 0:00:25.4]} 93. Rf8+ {[%clk 0:00:28.7]} 93... Ke5
{[%clk 0:00:26.6]} 94. Ra8 {[%clk 0:00:28.8]} 94... Re6 {[%clk 0:00:27.8]} 95.
Ra5+ {[%clk 0:00:29.2]} 95... Kf6 {[%clk 0:00:29]} 96. Ra8 {[%clk 0:00:30.3]}
96... Rb6 {[%clk 0:00:29.5]} 97. Rf8+ {[%clk 0:00:28.8]} 97... Kg6 {[%clk
0:00:30.9]} 98. Rg8+ {[%clk 0:00:30.1]} 98... Kf7 {[%clk 0:00:32.1]} 99. Ra8
{[%clk 0:00:31.1]} 99... Rb4 {[%clk 0:00:32.9]} 100. Ra6 {[%clk 0:00:32.3]}
100... Re4 {[%clk 0:00:33]} 101. Rb6 {[%clk 0:00:31.5]} 101... Re6 {[%clk
0:00:33.5]} 102. Rxe6 {[%clk 0:00:21.6]} 102... Kxe6 {[%clk 0:00:33.9]} 103. Kf4
{[%clk 0:00:23.1]} 103... Kf6 {[%clk 0:00:35.3]} 104. Kf3 {[%clk 0:00:24.6]}
104... Ke5 {[%clk 0:00:37.2]} 105. Ke3 {[%clk 0:00:26]} 105... f4+ {[%clk
0:00:39.1]} 106. Kf3 {[%clk 0:00:27.4]} 106... Kf5 {[%clk 0:00:41]} 107. Kf2
{[%clk 0:00:28.9]} 107... Ke4 {[%clk 0:00:42.9]} 108. Ke2 {[%clk 0:00:30.3]}
108... f3+ {[%clk 0:00:44.8]} 109. Kf2 {[%clk 0:00:31.7]} 109... Kf4 {[%clk
0:00:46.7]} 110. Kf1 {[%clk 0:00:32.9]} 110... Kg3 {[%clk 0:00:48.6]} 111. Kg1
{[%clk 0:00:34.2]} 111... f2+ {[%clk 0:00:49.8]} 112. Kf1 {[%clk 0:00:35.5]}
112... Kf3 {[%clk 0:00:51.7]} 1/2-1/2

[Event "*** Titled Tuesday Blitz"]
[Site "Chess.com"]
[Date "2019.02.05"]
[Round "5"]
[White "HajiyevKanan"]
[Black "kintoho"]
[Result "0-1"]
[WhiteElo "2345"]
[BlackElo "2486"]
[TimeControl "180+2"]
[EndTime "14:11:28 PST"]
[Termination "kintoho won by resignation"]

1. d4 {[%clk 0:03:01.9]} 1... g6 {[%clk 0:03:00]} 2. Nf3 {[%clk 0:03:03]} 2...
Bg7 {[%clk 0:03:01.2]} 3. g3 {[%clk 0:03:04.9]} 3... d5 {[%clk 0:03:01.3]} 4.
Bg2 {[%clk 0:03:06.1]} 4... Nf6 {[%clk 0:03:02.6]} 5. O-O {[%clk 0:03:07.7]}
5... c6 {[%clk 0:03:03.8]} 6. c4 {[%clk 0:03:09.1]} 6... O-O {[%clk 0:03:04.4]}
7. b3 {[%clk 0:03:10.7]} 7... a5 {[%clk 0:03:04.4]} 8. Nc3 {[%clk 0:03:11.4]}
8... Ne4 {[%clk 0:02:59.7]} 9. Bb2 {[%clk 0:03:10.1]} 9... Bf5 {[%clk
0:02:57.1]} 10. e3 {[%clk 0:03:10.7]} 10... Nxc3 {[%clk 0:02:57.6]} 11. Bxc3
{[%clk 0:03:12.6]} 11... Be4 {[%clk 0:02:59]} 12. Qd2 {[%clk 0:03:11.1]} 12...
Nd7 {[%clk 0:02:58]} 13. Rfd1 {[%clk 0:03:10.3]} 13... e6 {[%clk 0:02:54.1]} 14.
Rac1 {[%clk 0:03:09.8]} 14... a4 {[%clk 0:02:52.3]} 15. Bb4 {[%clk 0:02:53.6]}
15... Re8 {[%clk 0:02:49.2]} 16. Bd6 {[%clk 0:02:36.8]} 16... axb3 {[%clk
0:02:40.3]} 17. axb3 {[%clk 0:02:37.1]} 17... Qb6 {[%clk 0:02:41.4]} 18. Ng5
{[%clk 0:01:52.4]} 18... Bxg2 {[%clk 0:02:38.9]} 19. Kxg2 {[%clk 0:01:54.3]}
19... Ra7 {[%clk 0:02:23.7]} 20. Qb4 {[%clk 0:00:53.8]} 20... Qxb4 {[%clk
0:02:23.8]} 21. Bxb4 {[%clk 0:00:55.7]} 21... Rea8 {[%clk 0:02:22]} 22. Rd2
{[%clk 0:00:41.3]} 22... h6 {[%clk 0:02:12.6]} 23. Nf3 {[%clk 0:00:39.3]} 23...
Nf6 {[%clk 0:02:11.8]} 24. Rdc2 {[%clk 0:00:38.6]} 24... Ne4 {[%clk 0:02:11.7]}
25. Nd2 {[%clk 0:00:34.4]} 25... f5 {[%clk 0:02:10.2]} 26. f3 {[%clk 0:00:31.2]}
26... Nf6 {[%clk 0:02:06.3]} 27. h3 {[%clk 0:00:29.1]} 27... h5 {[%clk
0:02:07.4]} 28. Kf2 {[%clk 0:00:27.6]} 28... Ra6 {[%clk 0:02:06]} 29. Bc5 {[%clk
0:00:26.2]} 29... Nd7 {[%clk 0:02:04.6]} 30. Bd6 {[%clk 0:00:17]} 30... Kf7
{[%clk 0:02:04.3]} 31. b4 {[%clk 0:00:10.7]} 31... dxc4 {[%clk 0:01:54]} 32.
Nxc4 {[%clk 0:00:10.8]} 32... Ra2 {[%clk 0:01:54.8]} 33. Ke2 {[%clk 0:00:04.6]}
33... Rxc2+ {[%clk 0:01:54]} 34. Rxc2 {[%clk 0:00:06.5]} 34... Ra1 {[%clk
0:01:53.8]} 35. h4 {[%clk 0:00:06.5]} 35... Nf6 {[%clk 0:01:46.7]} 36. Ne5+
{[%clk 0:00:07.4]} 36... Ke8 {[%clk 0:01:47.6]} 37. b5 {[%clk 0:00:08.5]} 37...
Bf8 {[%clk 0:01:36.9]} 38. Bxf8 {[%clk 0:00:09]} 38... Kxf8 {[%clk 0:01:38]} 39.
bxc6 {[%clk 0:00:10.6]} 39... bxc6 {[%clk 0:01:39]} 40. Nxc6 {[%clk 0:00:06.5]}
40... Nd7 {[%clk 0:01:35.9]} 41. Ne5 {[%clk 0:00:04.8]} 41... Nxe5 {[%clk
0:01:36.2]} 42. dxe5 {[%clk 0:00:06.7]} 42... Ra5 {[%clk 0:01:36.4]} 43. f4
{[%clk 0:00:07.7]} 43... Kf7 {[%clk 0:01:37.1]} 44. Kf3 {[%clk 0:00:09.2]} 44...
Kf8 {[%clk 0:01:37.7]} 45. Rc7 {[%clk 0:00:10.1]} 45... Ra1 {[%clk 0:01:34.6]}
46. Rb7 {[%clk 0:00:09.7]} 46... Rc1 {[%clk 0:01:34.7]} 47. Ke2 {[%clk
0:00:10.2]} 47... Rh1 {[%clk 0:01:34.9]} 48. Kf2 {[%clk 0:00:10.6]} 48... Rh2+
{[%clk 0:01:35.9]} 49. Kf3 {[%clk 0:00:11.8]} 49... Ra2 {[%clk 0:01:36.3]} 50.
Rb6 {[%clk 0:00:13]} 50... Ke7 {[%clk 0:01:36.1]} 51. Rb7+ {[%clk 0:00:13.8]}
51... Kf8 {[%clk 0:01:37.1]} 52. Rc7 {[%clk 0:00:15.3]} 52... Ra6 {[%clk
0:01:36.4]} 53. Rd7 {[%clk 0:00:15.4]} 53... Rb6 {[%clk 0:01:37.1]} 54. Rd6
{[%clk 0:00:15.1]} 54... Rb1 {[%clk 0:01:27.5]} 55. Rxe6 {[%clk 0:00:15.6]}
55... Kf7 {[%clk 0:01:29.1]} 56. Rf6+ {[%clk 0:00:16.6]} 56... Kg7 {[%clk
0:01:30.7]} 57. Rd6 {[%clk 0:00:18.1]} 57... Rf1+ {[%clk 0:01:25.8]} 58. Ke2
{[%clk 0:00:18.7]} 58... Ra1 {[%clk 0:01:26.4]} 59. Rd7+ {[%clk 0:00:19.7]}
59... Kf8 {[%clk 0:01:26.5]} 60. Rb7 {[%clk 0:00:20.2]} 60... Ra2+ {[%clk
0:01:26.5]} 61. Kf3 {[%clk 0:00:21.5]} 61... Ra1 {[%clk 0:01:27.2]} 62. Rb6
{[%clk 0:00:22.6]} 62... Kf7 {[%clk 0:01:27.6]} 63. Rf6+ {[%clk 0:00:23.3]}
63... Kg7 {[%clk 0:01:28.5]} 64. Rc6 {[%clk 0:00:24.9]} 64... Kf7 {[%clk
0:01:29.5]} 65. Rc7+ {[%clk 0:00:25]} 65... Kf8 {[%clk 0:01:30.7]} 66. Rc3
{[%clk 0:00:24.5]} 66... Kf7 {[%clk 0:01:30.5]} 67. e4 {[%clk 0:00:23.2]} 67...
fxe4+ {[%clk 0:01:27.7]} 68. Kxe4 {[%clk 0:00:24.8]} 68... Ra4+ {[%clk
0:01:28.8]} 69. Kd5 {[%clk 0:00:23.1]} 69... Ra5+ {[%clk 0:01:28]} 70. Rc5
{[%clk 0:00:20.5]} 70... Ra3 {[%clk 0:01:29.1]} 71. Rc7+ {[%clk 0:00:21.4]}
71... Kf8 {[%clk 0:01:29.6]} 72. Ke6 {[%clk 0:00:22.4]} 72... Ra6+ {[%clk
0:01:29.8]} 73. Kd5 {[%clk 0:00:22.7]} 73... Ra5+ {[%clk 0:01:30.5]} 74. Ke4
{[%clk 0:00:22.3]} 74... Ra4+ {[%clk 0:01:31.2]} 75. Kf3 {[%clk 0:00:23.3]}
75... Ra3+ {[%clk 0:01:32.4]} 76. Kg2 {[%clk 0:00:24.7]} 76... Ra2+ {[%clk
0:01:33.7]} 77. Kh3 {[%clk 0:00:26.1]} 77... Ra3 {[%clk 0:01:33.8]} 78. Rb7
{[%clk 0:00:25.8]} 78... Rc3 {[%clk 0:01:34.2]} 79. Rb2 {[%clk 0:00:21.8]} 79...
Kf7 {[%clk 0:01:33.9]} 80. Kg2 {[%clk 0:00:23.1]} 80... Ke6 {[%clk 0:01:34.5]}
81. Kf2 {[%clk 0:00:24.6]} 81... Kf5 {[%clk 0:01:35.6]} 82. Rb6 {[%clk
0:00:25.7]} 82... Rc2+ {[%clk 0:01:34.7]} 83. Kf3 {[%clk 0:00:26.1]} 83... Rc3+
{[%clk 0:01:35.5]} 84. Kg2 {[%clk 0:00:27.6]} 84... Rc2+ {[%clk 0:01:35.9]} 85.
Kh3 {[%clk 0:00:28.4]} 85... Ke4 {[%clk 0:01:33.6]} 86. e6 {[%clk 0:00:22.6]}
86... Kf5 {[%clk 0:01:30.3]} 87. e7 {[%clk 0:00:19.3]} 87... Re2 {[%clk
0:01:31.1]} 88. Rb7 {[%clk 0:00:13.2]} 88... Kf6 {[%clk 0:01:30.5]} 89. Ra7
{[%clk 0:00:13.8]} 89... Kf7 {[%clk 0:01:29.5]} 90. e8=Q+ {[%clk 0:00:13.4]}
90... Kxe8 {[%clk 0:01:30.4]} 91. Rg7 {[%clk 0:00:15.1]} 91... Re6 {[%clk
0:01:30.7]} 92. g4 {[%clk 0:00:16.6]} 92... Kf8 {[%clk 0:01:30.6]} 93. Ra7
{[%clk 0:00:10]} 93... Re3+ {[%clk 0:01:31.2]} 94. Kg2 {[%clk 0:00:11.6]} 94...
hxg4 {[%clk 0:01:32.7]} 95. Rb7 {[%clk 0:00:08.3]} 95... Rf3 {[%clk 0:01:33.3]}
96. Rb6 {[%clk 0:00:07.9]} 96... Kg7 {[%clk 0:01:33]} 97. Rb4 {[%clk 0:00:07.2]}
97... Kh6 {[%clk 0:01:33.8]} 98. Rd4 {[%clk 0:00:04.7]} 98... Kh5 {[%clk
0:01:34.8]} 99. Rd7 {[%clk 0:00:05.7]} 99... Kh6 {[%clk 0:01:31.3]} 100. Rd4
{[%clk 0:00:06.5]} 100... Ra3 {[%clk 0:01:31]} 101. Rc4 {[%clk 0:00:06.2]}
101... Rh3 {[%clk 0:01:27.8]} 102. Rc6 {[%clk 0:00:04.8]} 102... Rf3 {[%clk
0:01:26.3]} 103. Rc4 {[%clk 0:00:04.4]} 103... Kg7 {[%clk 0:01:27.4]} 104. Rc7+
{[%clk 0:00:04.4]} 104... Kf6 {[%clk 0:01:28.4]} 105. Rc4 {[%clk 0:00:06.3]}
105... Kf5 {[%clk 0:01:29.7]} 106. Rc5+ {[%clk 0:00:07.1]} 106... Kxf4 {[%clk
0:01:30.4]} 107. Rg5 {[%clk 0:00:08.7]} 107... Ra3 {[%clk 0:01:30.5]} 108. Rxg6
{[%clk 0:00:09.2]} 108... Ra2+ {[%clk 0:01:31.6]} 109. Kg1 {[%clk 0:00:10.8]}
109... Kg3 {[%clk 0:01:32.3]} 110. Kf1 {[%clk 0:00:11.4]} 110... Ra1+ {[%clk
0:01:32.6]} 111. Ke2 {[%clk 0:00:12.7]} 111... Kxh4 {[%clk 0:01:33.3]} 112. Rh6+
{[%clk 0:00:07.9]} 112... Kg3 {[%clk 0:01:34.2]} 113. Rb6 {[%clk 0:00:08.1]}
113... Kg2 {[%clk 0:01:35]} 114. Rb2 {[%clk 0:00:08.6]} 114... g3 {[%clk
0:01:33.4]} 115. Ke3+ {[%clk 0:00:08.9]} 115... Kh3 {[%clk 0:01:33.7]} 116. Rb8
{[%clk 0:00:05.5]} 116... g2 {[%clk 0:01:29.8]} 117. Rh8+ {[%clk 0:00:05.8]}
117... Kg3 {[%clk 0:01:31]} 118. Rg8+ {[%clk 0:00:07.4]} 118... Kh2 {[%clk
0:01:32.3]} 119. Rh8+ {[%clk 0:00:08.3]} 119... Kg1 {[%clk 0:01:33.5]} 120. Kf3
{[%clk 0:00:05.8]} 120... Kf1 {[%clk 0:01:33.4]} 0-1

[Event "*** Titled Tuesday Blitz"]
[Site "Chess.com"]
[Date "2019.02.05"]
[Round "5"]
[White "x-6099009240"]
[Black "otrov-11"]
[Result "1-0"]
[WhiteElo "2397"]
[BlackElo "2318"]
[TimeControl "180+2"]
[EndTime "14:11:39 PST"]
[Termination "x-6099009240 won on time"]

1. e4 {[%clk 0:03:01.9]} 1... e6 {[%clk 0:03:00.7]} 2. d4 {[%clk 0:03:02.4]}
2... d5 {[%clk 0:03:01.9]} 3. Nd2 {[%clk 0:03:04]} 3... c5 {[%clk 0:03:02.5]} 4.
exd5 {[%clk 0:03:04.9]} 4... Qxd5 {[%clk 0:03:04.4]} 5. Ngf3 {[%clk 0:03:05.7]}
5... cxd4 {[%clk 0:03:05.7]} 6. Bc4 {[%clk 0:03:07]} 6... Qd6 {[%clk 0:03:07.3]}
7. O-O {[%clk 0:03:08.6]} 7... Nf6 {[%clk 0:03:08.7]} 8. Nb3 {[%clk 0:03:09.6]}
8... Nc6 {[%clk 0:03:10.2]} 9. Nbxd4 {[%clk 0:03:10.4]} 9... Nxd4 {[%clk
0:03:11.8]} 10. Nxd4 {[%clk 0:03:12.3]} 10... Qc7 {[%clk 0:03:13.4]} 11. Qe2
{[%clk 0:03:07.1]} 11... a6 {[%clk 0:03:08.1]} 12. h3 {[%clk 0:02:51.6]} 12...
Bc5 {[%clk 0:03:06.9]} 13. Nf5 {[%clk 0:02:42.1]} 13... O-O {[%clk 0:03:02.2]}
14. Nxg7 {[%clk 0:02:42.7]} 14... Kxg7 {[%clk 0:03:04.1]} 15. Qd2 {[%clk
0:02:43.1]} 15... Be7 {[%clk 0:02:23.3]} 16. Qh6+ {[%clk 0:02:28.4]} 16... Kg8
{[%clk 0:02:11.6]} 17. Bd3 {[%clk 0:02:18.1]} 17... Rd8 {[%clk 0:01:45.2]} 18.
Bg5 {[%clk 0:02:02.7]} 18... Rxd3 {[%clk 0:01:19.5]} 19. cxd3 {[%clk 0:02:04.5]}
19... Ne8 {[%clk 0:01:20.8]} 20. Rac1 {[%clk 0:02:02.4]} 20... Qd8 {[%clk
0:01:16.9]} 21. Bxe7 {[%clk 0:01:55]} 21... Qxe7 {[%clk 0:01:18.8]} 22. Rc4
{[%clk 0:01:56.3]} 22... f5 {[%clk 0:01:02.1]} 23. Re1 {[%clk 0:01:42.3]} 23...
Bd7 {[%clk 0:00:58.8]} 24. Re3 {[%clk 0:01:26.3]} 24... Rc8 {[%clk 0:00:49.2]}
25. Rg3+ {[%clk 0:01:26.9]} 25... Kh8 {[%clk 0:00:49.6]} 26. Qf4 {[%clk
0:01:03.4]} 26... Rxc4 {[%clk 0:00:40.4]} 27. Qxc4 {[%clk 0:00:57.7]} 27... Bc6
{[%clk 0:00:41.1]} 28. Qd4+ {[%clk 0:00:55]} 28... Nf6 {[%clk 0:00:35.6]} 29.
Qe5 {[%clk 0:00:48.7]} 29... Be8 {[%clk 0:00:26.3]} 30. d4 {[%clk 0:00:45.2]}
30... Qf8 {[%clk 0:00:18]} 31. f4 {[%clk 0:00:33.7]} 31... Bg6 {[%clk
0:00:16.7]} 32. h4 {[%clk 0:00:28.6]} 32... Qg7 {[%clk 0:00:14.5]} 33. Rc3
{[%clk 0:00:25]} 33... Ne8 {[%clk 0:00:10.3]} 34. Kf2 {[%clk 0:00:14.5]} 34...
Qxe5 {[%clk 0:00:10.6]} 35. dxe5 {[%clk 0:00:16.4]} 35... Kg7 {[%clk 0:00:10.4]}
36. g3 {[%clk 0:00:16.9]} 36... Kf7 {[%clk 0:00:11.4]} 37. Ke3 {[%clk
0:00:16.8]} 37... Ke7 {[%clk 0:00:12.8]} 38. Kd4 {[%clk 0:00:18.2]} 38... Kd7
{[%clk 0:00:14.2]} 39. Kc5 {[%clk 0:00:18.5]} 39... Kc7 {[%clk 0:00:14.1]} 40.
Kb4+ {[%clk 0:00:19.5]} 40... Kb6 {[%clk 0:00:13.8]} 41. a4 {[%clk 0:00:21.2]}
41... a5+ {[%clk 0:00:13.6]} 42. Kc4 {[%clk 0:00:22.2]} 42... Nc7 {[%clk
0:00:14.8]} 43. Rb3+ {[%clk 0:00:19.1]} 43... Kc6 {[%clk 0:00:16.2]} 44. Kd4
{[%clk 0:00:17.6]} 44... Nd5 {[%clk 0:00:16.3]} 45. Rd3 {[%clk 0:00:13.4]} 45...
Bh5 {[%clk 0:00:17.3]} 46. Rd2 {[%clk 0:00:14]} 46... Bf3 {[%clk 0:00:17.5]} 47.
Rc2+ {[%clk 0:00:14.8]} 47... Kd7 {[%clk 0:00:17.9]} 48. Rc5 {[%clk 0:00:15.5]}
48... b6 {[%clk 0:00:17.9]} 49. Rc1 {[%clk 0:00:15.4]} 49... Be4 {[%clk
0:00:16.9]} 50. Rg1 {[%clk 0:00:16]} 50... Bf3 {[%clk 0:00:17.7]} 51. Rc1 {[%clk
0:00:16.9]} 51... h5 {[%clk 0:00:18.7]} 52. Rc2 {[%clk 0:00:15.6]} 52... Bd1
{[%clk 0:00:19.4]} 53. Rc1 {[%clk 0:00:16.8]} 53... Bxa4 {[%clk 0:00:20.5]} 54.
Rc4 {[%clk 0:00:14.2]} 54... Bb5 {[%clk 0:00:21.5]} 55. Rc1 {[%clk 0:00:15.2]}
55... Be2 {[%clk 0:00:22.6]} 56. Rc2 {[%clk 0:00:13.2]} 56... Bg4 {[%clk
0:00:22.9]} 57. Rc1 {[%clk 0:00:14.7]} 57... Nb4 {[%clk 0:00:23.4]} 58. Kc4
{[%clk 0:00:13.8]} 58... Bf3 {[%clk 0:00:24.2]} 59. Kb5 {[%clk 0:00:14.1]} 59...
Nd5 {[%clk 0:00:24.1]} 60. Kc4 {[%clk 0:00:11.9]} 60... Be2+ {[%clk 0:00:25.2]}
61. Kd4 {[%clk 0:00:13.2]} 61... b5 {[%clk 0:00:25.5]} 62. Rc5 {[%clk
0:00:13.6]} 62... a4 {[%clk 0:00:24.9]} 63. Rc2 {[%clk 0:00:14.4]} 63... Bc4
{[%clk 0:00:25.8]} 64. Kc5 {[%clk 0:00:14.3]} 64... Kc7 {[%clk 0:00:25.5]} 65.
Rc1 {[%clk 0:00:14.9]} 65... Kb7 {[%clk 0:00:26.2]} 66. Ra1 {[%clk 0:00:15.7]}
66... Kc7 {[%clk 0:00:27]} 67. Rc1 {[%clk 0:00:17.2]} 67... Nb6 {[%clk
0:00:27.1]} 68. Rd1 {[%clk 0:00:15.8]} 68... Nd7+ {[%clk 0:00:28.1]} 69. Kb4
{[%clk 0:00:15.4]} 69... Nb6 {[%clk 0:00:27.8]} 70. Kc5 {[%clk 0:00:16.1]} 70...
Nd5 {[%clk 0:00:28.7]} 71. Rc1 {[%clk 0:00:16.9]} 71... Kd7 {[%clk 0:00:28.8]}
72. Ra1 {[%clk 0:00:17.3]} 72... Ne3 {[%clk 0:00:29.5]} 73. Re1 {[%clk
0:00:16.6]} 73... Nd5 {[%clk 0:00:27.4]} 74. Rc1 {[%clk 0:00:17.4]} 74... Ke7
{[%clk 0:00:28.5]} 75. Ra1 {[%clk 0:00:17.2]} 75... Ne3 {[%clk 0:00:29.3]} 76.
Re1 {[%clk 0:00:17.3]} 76... Nf1 {[%clk 0:00:30.5]} 77. Rd1 {[%clk 0:00:11.3]}
77... Nxg3 {[%clk 0:00:30.5]} 78. Kc6 {[%clk 0:00:12.7]} 78... Ne2 {[%clk
0:00:29.6]} 79. Rd7+ {[%clk 0:00:14]} 79... Ke8 {[%clk 0:00:30.3]} 80. Kd6
{[%clk 0:00:14.5]} 80... Nxf4 {[%clk 0:00:30.6]} 81. Re7+ {[%clk 0:00:14.7]}
81... Kf8 {[%clk 0:00:32]} 82. Rh7 {[%clk 0:00:14.9]} 82... Ng6 {[%clk
0:00:28.9]} 83. Rxh5 {[%clk 0:00:11.2]} 83... Kg7 {[%clk 0:00:29.6]} 84. Rg5
{[%clk 0:00:11.8]} 84... Kh6 {[%clk 0:00:31]} 85. Rg2 {[%clk 0:00:09.9]} 85...
Bd5 {[%clk 0:00:31.9]} 86. Rg1 {[%clk 0:00:10.5]} 86... b4 {[%clk 0:00:33.1]}
87. Ra1 {[%clk 0:00:08.6]} 87... a3 {[%clk 0:00:34.1]} 88. bxa3 {[%clk
0:00:09.9]} 88... b3 {[%clk 0:00:36]} 89. a4 {[%clk 0:00:10]} 89... Nf4 {[%clk
0:00:36.9]} 90. Rb1 {[%clk 0:00:10.8]} 90... Nd3 {[%clk 0:00:36.5]} 91. a5
{[%clk 0:00:12.1]} 91... Nb4 {[%clk 0:00:36.3]} 92. Kc5 {[%clk 0:00:13.1]} 92...
Nc2 {[%clk 0:00:36.9]} 93. a6 {[%clk 0:00:13.6]} 93... Na3 {[%clk 0:00:38.1]}
94. Rb2 {[%clk 0:00:10.1]} 94... Kh5 {[%clk 0:00:38.7]} 95. a7 {[%clk
0:00:09.9]} 95... Kxh4 {[%clk 0:00:39.3]} 96. Rxb3 {[%clk 0:00:11.3]} 96... Nc2
{[%clk 0:00:39.6]} 97. Rd3 {[%clk 0:00:09.5]} 97... Be4 {[%clk 0:00:30.2]} 98.
Rc3 {[%clk 0:00:05.6]} 98... Ne1 {[%clk 0:00:30.3]} 99. Kd6 {[%clk 0:00:06.5]}
99... Kg5 {[%clk 0:00:28.4]} 100. Kxe6 {[%clk 0:00:07.5]} 100... Nd3 {[%clk
0:00:29.7]} 101. Rxd3 {[%clk 0:00:08.4]} 101... f4 {[%clk 0:00:27.8]} 102. Kd6
{[%clk 0:00:05.1]} 102... f3 {[%clk 0:00:26.7]} 103. Rd1 {[%clk 0:00:06.7]}
103... Kf4 {[%clk 0:00:23.6]} 104. e6 {[%clk 0:00:07.9]} 104... Ke3 {[%clk
0:00:21.9]} 105. Rf1 {[%clk 0:00:08.8]} 1-0